{"text_format":"1","workbook":"xlsx","n_sheets":3,"sheets":["Instruccions","Reformulació Pressupost Bb","Resum Pressupost"],"not_rendered":{"charts":0,"images":1,"macros":1,"external_links":0,"defined_names":7,"comments":1,"pivot_tables":0},"unopened":[],"bounds":{"document_bytes":16777216,"sheet_cells":100000,"rows_first":2000,"rows_last":500,"rows_between":2000,"halvings":0,"cell_chars":16384,"cell_head_chars":4096},"cells_cut":0,"cells_raw":0,"read":"whole","date_system":"1900"}

{"sheet":"Instruccions","index":0,"n_rows":18,"n_cols":10,"rows_kept":18,"cut":false,"hidden":false,"merged":[[16,1,16,17],[1,9,1,11],[2,2,3,17],[4,2,4,17],[6,2,6,17],[8,1,8,17],[9,1,9,17],[10,1,10,17],[12,1,12,17],[14,1,14,17]]}
[]
[null,null,null,null,null,null,null,null,null,"Doc_basic3_pressup_reformulat_Bb INSTRUCCIONS"]
[null,null,"SUBVENCIONS DE L’AJUNTAMENT DE BARCELONA PER L’ENFORTIMENT DE L’ECONOMIA SOCIAL I SOLIDÀRIA I PER LA INTERCOOPERACIÓ EN L’ESTRATÈGIA #ESSBCN2030 - ENFORTIM L’ESS 2025"]
[]
[null,null,"Aspectes rellevants relacionats amb la reformulació"]
[]
[null,null,"INSTRUCCIONS"]
[]
[null,"1. Emplenar només les cel·les en blanc de la pestanya  \"Reformulació Pressupost\" amb les dades econòmiques del projecte:"]
[null,"1.1  Emplenar els quadres DADES BÀSIQUES-PREVISIÓ DE DESPESES DEL PROJECTE SUBVENCIONABLE INICIAL, amb les dades econòmiques de la proposta inicial amb subvenció atorgada."]
[null,"1.2  Emplenar els quadres DADES BÀSIQUES-PREVISIÓ DE DESPESES DEL PROJECTE REFORMULAT, amb les dades econòmiques de la proposta de reformulació."]
[]
[null,"2. Revisar i emplenar només les cel·les en blanc de la pestanya  \"Resum Pressupost\" amb les dades econòmiques del projecte."]
[]
[null,"3. Imprimir els fulls de les 2 pestanyes (Reformulació pressupost i Resum Pressupost). En format pdf."]
[]
[null,"4. Si la sol·licitud es va presentar per via telemàtica, cal que registreu la documentació telemàticament dins la convocatòria específica com annexió de documents addicionals i feu servir el número de tràmit que el sistema de registre us va donar en el moment de la presentació de la sol·licitud de la subvenció."]
[null,"Enllaç per realitzar el tràmit."]

{"sheet":"Reformulació Pressupost Bb","index":1,"n_rows":174,"n_cols":15,"rows_kept":174,"cut":false,"hidden":false,"merged":[[172,0,172,14],[10,0,10,3],[10,6,10,9],[12,7,12,9],[13,7,13,9],[11,1,11,3],[12,1,12,3],[13,1,13,3],[11,7,11,9],[16,12,16,14],[14,1,14,3],[16,0,16,4],[14,7,14,9],[16,6,16,10],[164,0,164,14],[165,0,165,14],[1,1,1,10],[3,0,3,14],[6,1,6,9],[7,1,7,9],[8,1,8,9],[4,0,4,14],[166,0,166,14],[167,0,167,14],[168,0,168,14],[159,0,159,14],[160,0,160,14],[161,0,161,14],[162,0,162,14],[163,0,163,14],[169,0,169,14],[170,0,170,14],[171,0,171,14],[173,0,173,14],[147,0,147,14],[148,0,148,14],[149,0,149,14],[150,0,150,14],[151,0,151,14],[152,0,152,14],[153,0,153,14],[154,0,154,14],[155,0,155,14],[156,0,156,14],[157,0,157,14],[158,0,158,14]]}
[]
[null,"Reformulació pressupost Modalitat Bb"]
[]
["Programa de subvencions de l'Ajuntament de Barcelona per l'enfortiment de l'Economia Social i Solidària i per la intercooperació en l'Estratègia #ESSBCN2030 - ENFORTIM L’ESS 2025"]
["EMPLENAR NOMÉS LES CEL·LES EN BLANC"]
[]
["Nom de la persona jurídica"]
["NIF de la persona jurídica"]
["Nom del projecte subvencionable"]
[]
["DADES BÀSIQUES DEL PROJECTE INICIAL SOL·LICITAT\n(indicar les dades sol·licitades a la proposta inicial)",null,null,null,null,null,"DADES BÀSIQUES PROJECTE REFORMULAT"]
["Import total del projecte subvencionable",null,null,null,null,null,"Import total del projecte REFORMULAT",null,null,null,{"$f":"IF(H12<B12*0.7,\"No es pot reformular més d'un 30%\",\"\")","v":""}]
["Import imputable a la subvenció municipal",null,null,null,null,null,"Import imputable a la subvenció ATORGADA\n(indicar l'import atorgat a la resolució)"]
["Import de l'aportació i/o cofinançament de l'organització",{"$f":"+B12-B13","v":0},null,null,null,null,"Import de l'aportació i/o cofinançament de l'organització",{"$f":"H12-H13","v":0}]
["% de l'import sol·licitat respecte el total del projecte subvencionable (màxim 80%*)",{"$f":"IF(B13>0,B13/B12,\"\")","v":""},null,null,"* La quantia de la subvenció atorgada no superarà el 80% de la despesa total del projecte a subvencionar. ",null,"% de l'import sol·licitat respecte el total del projecte subvencionable (màxim 80%*)\n(ha de ser igual o inferior respecte el % de la sol·licitud inicial)",{"$f":"IF(H13>0,H13/H12,\"\")","v":""},null,null,{"$f":"IF(H15=\"\",\"\",IF(H15>0.8,\"La quantia de la subvenció atorgada no pot superar el 80% de la despesa total del projecte\",IF(H15>B15,\"Ha de ser igual o inferior al % de la proposta inicial\",\"\")))","v":""}]
[]
["PREVISIÓ DE DESPESES DEL PROJECTE SUBVENCIONABLE INICIAL",null,null,null,null,null,"PREVISIÓ DE DESPESES DEL PROJECTE REFORMULAT",null,null,null,null,null,"DIFERÈNCIA REFORMULACIÓ I PROJECTE INICIAL"]
[]
["Partides","Import imputable a la subvenció municipal","% subvenció / total","Import de l'aportació i/o Cofinançament de l'organització","Import total del projecte",null,"Partides","Import imputable a la subvenció municipal","% subvenció / total","Import de l'aportació i/o Cofinançament de l'organització","Import total del projecte",null,"Import imputable a la subvenció municipal","Import de l'aportació i/o Cofinançament de l'organització","Import total del projecte"]
["D1. Nòmines i seguretat social IRPF (règim general o socis/es cooperativistes en règim d’autònoms) del personal propi vinculat al projecte subvencionable (màxim 40% import subvenció)",{"$f":"SUM(B21:B27)","v":0},{"$f":"IF(B20>0,B20/$B$13,)","v":0},{"$f":"SUM(D21:D27)","v":0},{"$f":"B20+D20","v":0},null,"D1. Nòmines i seguretat social IRPF (règim general o socis/es cooperativistes en règim d’autònoms) del personal propi vinculat al projecte subvencionable (màxim 40% import subvenció)",{"$f":"SUM(H21:H27)","v":0},{"$f":"IF(H20>0,H20/$H$13,)","v":0},{"$f":"SUM(J21:J27)","v":0},{"$f":"+H20+J20","v":0},null,{"$f":"B20-H20","v":0},{"$f":"D20-J20","v":0},0]
[null,null,null,null,0,null,null,null,null,null,0,null,{"$f":"B21-H21","v":0},0,0]
[null,null,null,null,0,null,null,null,null,null,0,null,0,0,0]
[null,null,null,null,0,null,null,null,null,null,0,null,0,0,0]
[null,null,null,null,0,null,null,null,null,null,0,null,0,0,0]
[null,null,null,null,{"$f":"B25+D25","v":0},null,null,null,null,null,{"$f":"+H25+J25","v":0},null,0,0,0]
["D2. Nòmines i seguretat social d’estudiants en pràctiques (amb un límit del 80% del seu sou brut corresponent al període de l’execució de la subvenció) - excepte si la seguretat social està bonificada",{"$f":"SUM(B27:B31)","v":0},{"$f":"IF(B26>0,B26/$B$13,)","v":0},{"$f":"SUM(D27:D31)","v":0},0,null,"D2. Nòmines i seguretat social d’estudiants en pràctiques (amb un límit del 80% del seu sou brut corresponent al període de l’execució de la subvenció) - excepte si la seguretat social està bonificadacte",{"$f":"SUM(H27:H31)","v":0},{"$f":"IF(H26>0,H26/$H$13,)","v":0},{"$f":"SUM(J27:J31)","v":0},0,null,{"$f":"B26-H26","v":0},{"$f":"D26-J26","v":0},{"$f":"E26-K26","v":0}]
[null,null,null,null,0,null,null,null,null,null,0,null,0,0,0]
[null,null,null,null,0,null,null,null,null,null,0,null,0,0,0]
[null,null,null,null,0,null,null,null,null,null,0,null,0,0,0]
[null,null,null,null,0,null,null,null,null,null,0,null,0,0,0]
[null,null,null,null,0,null,null,null,null,null,0,null,0,0,0]
["TOTAL DE DESPESES DEL PERSONAL",{"$f":"B20+B26","v":0},{"$f":"IF(B32>0,B32/$B$13,)","v":0},{"$f":"D20+D26","v":0},{"$f":"E20+E26","v":0},null,"TOTAL DE DESPESES DEL PERSONAL",{"$f":"H20+H26","v":0},{"$f":"IF(H32>0,H32/$H$13,)","v":0},{"$f":"J20+J26","v":0},{"$f":"K20+K26","v":0},null,{"$f":"B32-H32","v":0},{"$f":"D32-J32","v":0},0]
["D3. Treballs realitzats per professionals i empreses externes directament vinculades al projecte",{"$f":"SUM(B34:B38)","v":0},{"$f":"IF(B33>0,B33/$B$13,)","v":0},{"$f":"SUM(D34:D38)","v":0},{"$f":"B33+D33","v":0},null,"D3. Treballs realitzats per professionals i empreses externes directament vinculades al projecte",{"$f":"SUM(H34:H38)","v":0},{"$f":"IF(H33>0,H33/$H$13,)","v":0},{"$f":"SUM(J34:J38)","v":0},{"$f":"H33+J33","v":0},null,{"$f":"B33-H33","v":0},{"$f":"D33-J33","v":0},{"$f":"E33-K33","v":0}]
[null,null,null,null,0,null,null,null,null,null,0,null,{"$f":"B34-H34","v":0},0,0]
[null,null,null,null,0,null,null,null,null,null,0,null,0,0,0]
[null,null,null,null,0,null,null,null,null,null,0,null,0,0,0]
[null,null,null,null,0,null,null,null,null,null,0,null,0,0,0]
[null,null,null,null,0,null,null,null,null,null,{"$f":"+H38+J38","v":0},null,0,0,0]
["D4. Adquisició de materials i béns consumibles íntegrament imputables al projecte ",{"$f":"SUM(B40:B44)","v":0},{"$f":"IF(B39>0,B39/$B$13,)","v":0},{"$f":"SUM(D40:D44)","v":0},0,null,"D4. Adquisició de materials i béns consumibles íntegrament imputables al projecte ",{"$f":"SUM(H40:H44)","v":0},{"$f":"IF(H39>0,H39/$H$13,)","v":0},{"$f":"SUM(J40:J44)","v":0},{"$f":"H39+J39","v":0},null,{"$f":"B39-H39","v":0},{"$f":"D39-J39","v":0},{"$f":"E39-K39","v":0}]
[null,null,null,null,0,null,null,null,null,null,0,null,{"$f":"B40-H40","v":0},0,0]
[null,null,null,null,0,null,null,null,null,null,0,null,0,0,0]
[null,null,null,null,0,null,null,null,null,null,0,null,0,0,0]
[null,null,null,null,0,null,null,null,null,null,0,null,0,0,0]
[null,null,null,null,0,null,null,null,null,null,{"$f":"+H44+J44","v":0},null,0,0,0]
["D5. Transport – missatgeria imputables al projecte",{"$f":"SUM(B46:B50)","v":0},{"$f":"IF(B45>0,B45/$B$13,)","v":0},{"$f":"SUM(D46:D50)","v":0},0,null,"D5. Transport – missatgeria imputables al projecte",{"$f":"SUM(H46:H50)","v":0},{"$f":"IF(H45>0,H45/$H$13,)","v":0},{"$f":"SUM(J46:J50)","v":0},{"$f":"H45+J45","v":0},null,{"$f":"B45-H45","v":0},{"$f":"D45-J45","v":0},{"$f":"E45-K45","v":0}]
[null,null,null,null,0,null,null,null,null,null,0,null,{"$f":"B46-H46","v":0},0,0]
[null,null,null,null,0,null,null,null,null,null,0,null,0,0,0]
[null,null,null,null,0,null,null,null,null,null,0,null,0,0,0]
[null,null,null,null,0,null,null,null,null,null,0,null,0,0,0]
[null,null,null,null,0,null,null,null,null,null,{"$f":"+H50+J50","v":0},null,0,0,0]
["D6. Publicitat i propaganda de les activitats directament vinculades al projecte",{"$f":"SUM(B52:B56)","v":0},{"$f":"IF(B51>0,B51/$B$13,)","v":0},{"$f":"SUM(D52:D56)","v":0},0,null,"D6. Publicitat i propaganda de les activitats directament vinculades al projecte",{"$f":"SUM(H52:H56)","v":0},{"$f":"IF(H51>0,H51/$H$13,)","v":0},{"$f":"SUM(J52:J56)","v":0},{"$f":"H51+J51","v":0},null,{"$f":"B51-H51","v":0},{"$f":"D51-J51","v":0},{"$f":"E51-K51","v":0}]
[null,null,null,null,0,null,null,null,null,null,0,null,{"$f":"B52-H52","v":0},0,0]
[null,null,null,null,0,null,null,null,null,null,0,null,0,0,0]
[null,null,null,null,0,null,null,null,null,null,0,null,0,0,0]
[null,null,null,null,0,null,null,null,null,null,0,null,0,0,0]
[null,null,null,null,0,null,null,null,null,null,{"$f":"+H56+J56","v":0},null,0,0,0]
["D7. Allotjament i dietes, del personal contractat i voluntari, vinculats al projecte",{"$f":"SUM(B58:B62)","v":0},{"$f":"IF(B57>0,B57/$B$13,)","v":0},{"$f":"SUM(D58:D62)","v":0},0,null,"D7. Allotjament i dietes, del personal contractat i voluntari, vinculats al projecte",{"$f":"SUM(H58:H62)","v":0},{"$f":"IF(H57>0,H57/$H$13,)","v":0},{"$f":"SUM(J58:J62)","v":0},{"$f":"H57+J57","v":0},null,{"$f":"B57-H57","v":0},{"$f":"D57-J57","v":0},{"$f":"E57-K57","v":0}]
[null,null,null,null,0,null,null,null,null,null,0,null,{"$f":"B58-H58","v":0},0,0]
[null,null,null,null,0,null,null,null,null,null,0,null,0,0,0]
[null,null,null,null,0,null,null,null,null,null,0,null,0,0,0]
[null,null,null,null,0,null,null,null,null,null,0,null,0,0,0]
[null,null,null,null,0,null,null,null,null,null,{"$f":"+H62+J62","v":0},null,0,0,0]
["D8. Ajuts al transport per als/les participants dels projectes en cas que sigui necessari de manera justificada",{"$f":"SUM(B64:B68)","v":0},{"$f":"IF(B63>0,B63/$B$13,)","v":0},{"$f":"SUM(D64:D68)","v":0},0,null,"D8. Ajuts al transport per als/les participants dels projectes en cas que sigui necessari de manera justificada",{"$f":"SUM(H64:H68)","v":0},{"$f":"IF(H63>0,H63/$H$13,)","v":0},{"$f":"SUM(J64:J68)","v":0},{"$f":"H63+J63","v":0},null,{"$f":"B63-H63","v":0},{"$f":"D63-J63","v":0},{"$f":"E63-K63","v":0}]
[null,null,null,null,0,null,null,null,null,null,0,null,{"$f":"B64-H64","v":0},0,0]
[null,null,null,null,0,null,null,null,null,null,0,null,0,0,0]
[null,null,null,null,0,null,null,null,null,null,0,null,0,0,0]
[null,null,null,null,0,null,null,null,null,null,0,null,0,0,0]
[null,null,null,null,0,null,null,null,null,null,{"$f":"+H68+J68","v":0},null,0,0,0]
["D9. Viatges i desplaçaments imputables a les activitats del projecte  (amb un límit del 7% de l'import de la subvenció)",{"$f":"SUM(B70:B74)","v":0},{"$f":"IF(B69>0,B69/$B$13,)","v":0},{"$f":"SUM(D70:D74)","v":0},{"$f":"B69+D69","v":0},null,"D9. Viatges i desplaçaments imputables a les activitats del projecte (amb un límit del 7% de l'import de la subvenció)",{"$f":"SUM(H70:H74)","v":0},{"$f":"IF(H69>0,H69/$H$13,)","v":0},{"$f":"SUM(J70:J74)","v":0},{"$f":"H69+J69","v":0},null,{"$f":"B69-H69","v":0},{"$f":"D69-J69","v":0},{"$f":"E69-K69","v":0}]
[null,null,null,null,0,null,null,null,null,null,0,null,{"$f":"B70-H70","v":0},0,0]
[null,null,null,null,0,null,null,null,null,null,0,null,0,0,0]
[null,null,null,null,0,null,null,null,null,null,0,null,0,0,0]
[null,null,null,null,0,null,null,null,null,null,0,null,0,0,0]
[null,null,null,null,0,null,null,null,null,null,{"$f":"+H74+J74","v":0},null,0,0,0]
["D10. Tributs, quan siguin abonats directament per la persona jurídica beneficiària",{"$f":"SUM(B76:B80)","v":0},{"$f":"IF(B75>0,B75/$B$13,)","v":0},{"$f":"SUM(D76:D80)","v":0},0,null,"D10. Tributs, quan siguin abonats directament per la persona jurídica beneficiària",{"$f":"SUM(H76:H80)","v":0},{"$f":"IF(H75>0,H75/$H$13,)","v":0},{"$f":"SUM(J76:J80)","v":0},{"$f":"H75+J75","v":0},null,{"$f":"B75-H75","v":0},{"$f":"D75-J75","v":0},{"$f":"E75-K75","v":0}]
[null,null,null,null,0,null,null,null,null,null,0,null,{"$f":"B76-H76","v":0},0,0]
[null,null,null,null,0,null,null,null,null,null,0,null,0,0,0]
[null,null,null,null,0,null,null,null,null,null,0,null,0,0,0]
[null,null,null,null,0,null,null,null,null,null,0,null,0,0,0]
[null,null,null,null,0,null,null,null,null,null,{"$f":"+H80+J80","v":0},null,0,0,0]
["D11. Despeses de l'informe d'auditoria (màxim 1.500€ subvenció)",{"$f":"SUM(B82:B86)","v":0},{"$f":"IF(B81>0,B81/$B$13,)","v":0},{"$f":"SUM(D82:D86)","v":0},0,null,"D11. Despeses de l'informe d'auditoria (màxim 1.500€ subvenció)",{"$f":"SUM(H82:H86)","v":0},{"$f":"IF(H81>0,H81/$H$13,)","v":0},{"$f":"SUM(J82:J86)","v":0},{"$f":"H81+J81","v":0},null,{"$f":"B81-H81","v":0},{"$f":"D81-J81","v":0},{"$f":"E81-K81","v":0}]
[null,null,null,null,0,null,null,null,null,null,0,null,{"$f":"B82-H82","v":0},0,0]
[null,null,null,null,0,null,null,null,null,null,0,null,0,0,0]
[null,null,null,null,0,null,null,null,null,null,0,null,0,0,0]
[null,null,null,null,0,null,null,null,null,null,0,null,0,0,0]
[null,null,null,null,0,null,null,null,null,null,{"$f":"+H86+J86","v":0},null,0,0,0]
["D12. Altres despeses que de manera justificada i per la tipologia del projecte puguin imputar-se directament al projecte",{"$f":"SUM(B88:B92)","v":0},{"$f":"IF(B87>0,B87/$B$13,)","v":0},{"$f":"SUM(D88:D92)","v":0},{"$f":"B87+D87","v":0},null,"D12. Altres despeses que de manera justificada i per la tipologia del projecte puguin imputar-se directament al projecte",{"$f":"SUM(H88:H92)","v":0},{"$f":"IF(H87>0,H87/$H$13,)","v":0},{"$f":"SUM(J88:J92)","v":0},{"$f":"H87+J87","v":0},null,{"$f":"B87-H87","v":0},{"$f":"D87-J87","v":0},0]
[null,null,null,null,0,null,null,null,null,null,0,null,{"$f":"B88-H88","v":0},0,0]
[null,null,null,null,0,null,null,null,null,null,0,null,0,0,0]
[null,null,null,null,0,null,null,null,null,null,0,null,0,0,0]
[null,null,null,null,0,null,null,null,null,null,0,null,0,0,0]
[null,null,null,null,0,null,null,null,null,null,{"$f":"+H92+J92","v":0},null,{"$f":"B92-H92","v":0},{"$f":"D92-J92","v":0},{"$f":"E92-K92","v":0}]
["TOTAL D'ALTRES DESPESES DIRECTES ",{"$f":"B33+B39+B45+B51+B57+B63+B69+B75+B81+B87","v":0},{"$f":"IF(B93>0,B93/$B$13,)","v":0},{"$f":"D33+D39+D45+D51+D57+D63+D69+D75+D81+D87","v":0},{"$f":"E33+E39+E45+E51+E57+E63+E69+E75+E81+E87","v":0},null,"TOTAL D'ALTRES DESPESES DIRECTES ",{"$f":"H33+H39+H45+H51+H57+H63+H69+H75+H81+H87","v":0},{"$f":"IF(H93>0,H93/$H$13,)","v":0},{"$f":"J33+J39+J45+J51+J57+J63+J69+J75+J81+J87","v":0},{"$f":"K33+K39+K45+K51+K57+K63+K69+K75+K81+K87","v":0},null,{"$f":"B93-H93","v":0},{"$f":"D93-J93","v":0},0]
["TOTAL DESPESES DIRECTES (aquelles que s’identifiquen directament amb el projecte subvencionable)",{"$f":"SUM(B32,B93)","v":0},{"$f":"IF(B94>0,B94/$B$13,)","v":0},{"$f":"SUM(D32,D93)","v":0},{"$f":"E32+E93","v":0},null,"TOTAL DESPESES DIRECTES (aquelles que s’identifiquen directament amb el projecte subvencionable)",{"$f":"SUM(H32,H93)","v":0},{"$f":"IF(H94>0,H94/$H$13,)","v":0},{"$f":"SUM(J32,J93)","v":0},{"$f":"K32+K93","v":0},null,0,{"$f":"D94-J94","v":0},0]
["I1. Personal de suport al projecte (nòmines i seguretat social) ",{"$f":"SUM(B96:B99)","v":0},null,{"$f":"SUM(D96:D99)","v":0},{"$f":"+B95+D95","v":0},null,"I1. Personal de suport al projecte (nòmines i seguretat social) ",{"$f":"SUM(H96:H99)","v":0},null,{"$f":"SUM(J96:J99)","v":0},{"$f":"+H95+J95","v":0},null,0,{"$f":"D95-J95","v":0},0]
[null,null,null,null,0,null,null,null,null,null,0,null,0,0,0]
[null,null,null,null,0,null,null,null,null,null,0,null,0,0,0]
[null,null,null,null,0,null,null,null,null,null,0,null,0,0,0]
[null,null,null,null,0,null,null,null,null,null,0,null,0,0,0]
["I2. Assegurances",{"$f":"SUM(B101:B104)","v":0},null,{"$f":"SUM(D101:D104)","v":0},0,null,"I2. Assegurances",{"$f":"SUM(H101:H104)","v":0},null,{"$f":"SUM(J101:J104)","v":0},0,null,{"$f":"B100-H100","v":0},{"$f":"D100-J100","v":0},0]
[null,null,null,null,0,null,null,null,null,null,0,null,{"$f":"B101-H101","v":0},0,0]
[null,null,null,null,0,null,null,null,null,null,0,null,0,0,0]
[null,null,null,null,0,null,null,null,null,null,0,null,0,0,0]
[null,null,null,null,0,null,null,null,null,null,0,null,0,0,0]
["I3. Amortització",{"$f":"SUM(B106:B109)","v":0},null,{"$f":"SUM(D106:D109)","v":0},0,null,"I3. Amortització",{"$f":"SUM(H106:H109)","v":0},null,{"$f":"SUM(J106:J109)","v":0},0,null,{"$f":"B105-H105","v":0},{"$f":"D105-J105","v":0},0]
[null,null,null,null,0,null,null,null,null,null,0,null,{"$f":"B106-H106","v":0},0,0]
[null,null,null,null,0,null,null,null,null,null,0,null,0,0,0]
[null,null,null,null,0,null,null,null,null,null,0,null,0,0,0]
[null,null,null,null,0,null,null,null,null,null,0,null,0,0,0]
["I4. Lloguer de béns immobles",{"$f":"SUM(B111:B114)","v":0},null,{"$f":"SUM(D111:D114)","v":0},0,null,"I4. Lloguer de béns immobles",{"$f":"SUM(H111:H114)","v":0},null,{"$f":"SUM(J111:J114)","v":0},0,null,{"$f":"B110-H110","v":0},{"$f":"D110-J110","v":0},0]
[null,null,null,null,0,null,null,null,null,null,0,null,{"$f":"B111-H111","v":0},0,0]
[null,null,null,null,0,null,null,null,null,null,0,null,0,0,0]
[null,null,null,null,0,null,null,null,null,null,0,null,0,0,0]
[null,null,null,null,0,null,null,null,null,null,0,null,0,0,0]
["I5. Adquisició de materials i béns consumibles parcialment imputables al projecte",{"$f":"SUM(B116:B119)","v":0},null,{"$f":"SUM(D116:D119)","v":0},0,null,"I5. Adquisició de materials i béns consumibles parcialment imputables al projecte",{"$f":"SUM(H116:H119)","v":0},null,{"$f":"SUM(J116:J119)","v":0},0,null,{"$f":"B115-H115","v":0},{"$f":"D115-J115","v":0},0]
[null,null,null,null,0,null,null,null,null,null,0,null,{"$f":"B116-H116","v":0},0,0]
[null,null,null,null,0,null,null,null,null,null,0,null,0,0,0]
[null,null,null,null,0,null,null,null,null,null,0,null,{"$f":"B118-H118","v":0},0,0]
[null,null,null,null,0,null,null,null,null,null,0,null,0,0,0]
["I6. Manteniment d’edificis i/o instal·lacions",{"$f":"SUM(B121:B124)","v":0},null,{"$f":"SUM(D121:D124)","v":0},0,null,"I6. Manteniment d’edificis i/o instal·lacions",{"$f":"SUM(H121:H124)","v":0},null,{"$f":"SUM(J121:J124)","v":0},0,null,{"$f":"B120-H120","v":0},{"$f":"D120-J120","v":0},0]
[null,null,null,null,0,null,null,null,null,null,0,null,{"$f":"B121-H121","v":0},0,0]
[null,null,null,null,0,null,null,null,null,null,0,null,0,0,0]
[null,null,null,null,0,null,null,null,null,null,0,null,0,0,0]
[null,null,null,null,0,null,null,null,null,null,0,null,0,0,0]
["I7. Comunicacions (telèfon, correus, connexió a internet)",{"$f":"SUM(B126:B129)","v":0},null,{"$f":"SUM(D126:D129)","v":0},0,null,"I7. Comunicacions (telèfon, correus, connexió a internet)",{"$f":"SUM(H126:H129)","v":0},null,{"$f":"SUM(J126:J129)","v":0},0,null,{"$f":"B125-H125","v":0},{"$f":"D125-J125","v":0},0]
[null,null,null,null,0,null,null,null,null,null,0,null,{"$f":"B126-H126","v":0},0,0]
[null,null,null,null,0,null,null,null,null,null,0,null,0,0,0]
[null,null,null,null,0,null,null,null,null,null,0,null,0,0,0]
[null,null,null,null,0,null,null,null,null,null,0,null,0,0,0]
["I8. Despeses financeres",{"$f":"SUM(B131:B134)","v":0},null,{"$f":"SUM(D131:D134)","v":0},0,null,"I8. Despeses financeres",{"$f":"SUM(H131:H134)","v":0},null,{"$f":"SUM(J131:J134)","v":0},0,null,{"$f":"B130-H130","v":0},{"$f":"D130-J130","v":0},0]
[null,null,null,null,0,null,null,null,null,null,0,null,{"$f":"B131-H131","v":0},0,0]
[null,null,null,null,0,null,null,null,null,null,0,null,0,0,0]
[null,null,null,null,0,null,null,null,null,null,0,null,0,0,0]
[null,null,null,null,0,null,null,null,null,null,0,null,0,0,0]
["I9. Subministraments",{"$f":"SUM(B136:B139)","v":0},null,{"$f":"SUM(D136:D139)","v":0},0,null,"I9. Subministraments",{"$f":"SUM(H136:H139)","v":0},null,{"$f":"SUM(J136:J139)","v":0},0,null,{"$f":"B135-H135","v":0},{"$f":"D135-J135","v":0},0]
[null,null,null,null,0,null,null,null,null,null,0,null,{"$f":"B136-H136","v":0},0,0]
[null,null,null,null,0,null,null,null,null,null,0,null,0,0,0]
[null,null,null,null,0,null,null,null,null,null,0,null,0,0,0]
[null,null,null,null,0,null,null,null,null,null,0,null,0,0,0]
["I10. Treball realitzat per altres empreses, parcialment imputables al projecte (neteja, seguretat...)",{"$f":"SUM(B141:B144)","v":0},null,{"$f":"SUM(D141:D144)","v":0},0,null,"I10. Treball realitzat per altres empreses, parcialment imputables al projecte (neteja, seguretat...)",{"$f":"SUM(H141:H144)","v":0},null,{"$f":"SUM(J141:J144)","v":0},0,null,{"$f":"B140-H140","v":0},{"$f":"D140-J140","v":0},0]
[null,null,null,null,0,null,null,null,null,null,0,null,{"$f":"B141-H141","v":0},0,0]
[null,null,null,null,0,null,null,null,null,null,0,null,0,0,0]
[null,null,null,null,0,null,null,null,null,null,0,null,0,0,0]
[null,null,null,null,0,null,null,null,null,null,0,null,0,0,0]
["TOTAL DESPESES INDIRECTES (es podran assignar al projecte subvencionable fent sevir un percentatge d’assignació) - Màxim 10% de l’import imputable a la subvenció municipal",{"$f":"SUM(B95,B100,B105,B110,B115,B120,B125,B130,B135,B140)","v":0},{"$f":"IF(B145>0,B145/$B$13,)","v":0},{"$f":"SUM(D95,D100,D105,D110,D115,D120,D125,D130,D135,D140)","v":0},{"$f":"E95+E100+E105+E110+E115+E120+E125+E130+E135+E140","v":0},null,"TOTAL DESPESES INDIRECTES (es podran assignar al projecte subvencionable fent sevir un percentatge d’assignació) - Màxim 10% de l’import imputable a la subvenció municipal",{"$f":"SUM(H95,H100,H105,H110,H115,H120,H125,H130,H135,H140)","v":0},{"$f":"IF(H145>0,H145/$H$13,)","v":0},{"$f":"SUM(J95,J100,J105,J110,J115,J120,J125,J130,J135,J140)","v":0},{"$f":"K95+K100+K105+K110+K115+K120+K125+K130+K135+K140","v":0},{"$f":"+IF(H145>H13*0.1,\"ALERTA: Màxim 10% import imputable a la subvenció municipal\", \" \")","v":" "},{"$f":"B145-H145","v":0},{"$f":"D145-J145","v":0},0]
["TOTAL DE DESPESES PREVISTES",{"$f":"SUM(B94+B145)","v":0},{"$f":"IF(B146>0,B146/$B$13,)","v":0},{"$f":"SUM(D94+D145)","v":0},{"$f":"SUM(E94+E145)","v":0},null,"TOTAL DE DESPESES PREVISTES",{"$f":"SUM(H94+H145)","v":0},{"$f":"IF(H146>0,H146/$H$13,)","v":0},{"$f":"SUM(J94+J145)","v":0},0,null,0,{"$f":"D146-J146","v":0},0]
[null,{"$f":"IF(B146>B13,\"La suma del detall de despeses no pot ser superior a l'import total de subvenció municipal indicat al requadre\",(IF(B146<B13,\"La suma del detall de despeses no pot ser inferior a l'import total de subvenció municipal indicat al requadre\",\"\")))","v":""},null,{"$f":"IF(D146>B14,\"La suma del detall de despeses no pot ser superior a l'import total de l'aportació/confinançament indicat al requadre\",(IF(D146<B14,\"La suma del detall de despeses no pot ser inferior a l'import total de l'aportació/confinançament indicat al requadre\",\"\")))","v":""},{"$f":"IF(E146>B12,\"La suma del detall de despeses no pot ser superior a l'import total del projecte indicat al requadre\",(IF(E146<B12,\"La suma del detall de despeses no pot ser inferior a l'import total del projecte indicat al requadre\",\"\")))","v":""},null,null,{"$f":"IF(H146>H13,\"La suma del detall de despeses no pot ser superior a l'import total de subvenció municipal indicat al requadre\",(IF(H146<H13,\"La suma del detall de despeses no pot ser inferior a l'import total de subvenció municipal indicat al requadre\",\"\")))","v":""},null,{"$f":"IF(J146>H14,\"La suma del detall de despeses no pot ser superior a l'import total de l'aportació/confinançament indicat al requadre\",(IF(J146<H14,\"La suma del detall de despeses no pot ser inferior a l'import total de l'aportació/confinançament indicat al requadre\",\"\")))","v":""},{"$f":"IF(K146>H12,\"La suma del detall de despeses no pot ser superior a l'import total del projecte indicat al requadre\",(IF(K146<H12,\"La suma del detall de despeses no pot ser inferior a l'import total del projecte indicat al requadre\",\"\")))","v":""}]
["Modalitat Bb: Accions d’intercooperació, per crear i/o enfortir ecosistemes cooperatius i/o clústers d’ESS de la ciutat de Barcelona i per altres accions  d'intercooperació promogudes per organitzacions i empreses de l’economia social i solidària, vinculades en qualsevol dels casos,  a l’Estratègia #ESSBCN2030  i als objectius del PIESS 2024-2027"]
[" 1. La quantia de la subvenció atorgada no superarà el 80% de la despesa total del projecte a subvencionar. "]
[" 2. L'import màxim de subvenció per a aquesta modalitat Bb és 25.000€.\n"]
[" 3. En el cas que la sol·licitud presentada sobrepassi l’import màxim, es considerarà com a import sol·licitat el màxim de l'establert a la convocatòria."]
[" 4. En aquesta modalitat s'acceptarà la imputació de despeses de personal propi i directament vinculat al projecte de les organitzacions participants de l'acord d'intercooperació."]
[" 5. Es limita amb un màxim del 40% l'import de la subvenció per  a despeses de personal propi assignat directament al projecte subvencionat (règim general o socis/es cooperativistes en règim d’autònoms-), i un 80% per a nòmines i seguretat social d’estudiants en pràctiques (sou brut corresponent al període de l’execució de la subvenció) - excepte si la seguretat social està bonificada."]
[" 6. En el cas de lloguers d’immobles les despeses de lloguer s’imputaran a les despeses indirectes amb el límit establert per aquestes despeses indirectes."]
[" 7. Per a les subvencions atorgades per import igual o superior a 20.000 € és necessari un informe d'auditoria per a la justificació. L'import d'aquest informe es considera despesa subvencionable, amb un límit màxim de 1.500€."]
[" 8. Són imputables en aquesta modalitat les despeses indirectes, detallades en l’apartat 13.3. de les bases reguladores; amb un màxim del 10% de l'import de la subvenció.\nEl caràcter subvencionable de la despesa d'amortització estarà subjecte a les condicions següents:\n> Que les subvencions no hagin contribuït a la compra dels béns.\n> Que l'amortització es calculi de conformitat amb les normes de comptabilitat generalment acceptades.\n> Que el cost es refereixi al període subvencionable.\n\n"]
[" 9. No seran elegibles factures d'empreses emeses entre les organitzacions participants de l'acord de col·laboració."]
[" 10. En cap cas es consideraran despeses subvencionables:\n> Els impostos indirectes quan siguin susceptibles de recuperació o compensació.\n> Les despeses d'inversió, incloses les adquisicions de béns mobles.\n> Les despeses realitzades amb data anterior a l'inici del projecte i data posterior a la finalització del projecte.\n> Altres despeses que s'indiquin a la convocatòria."]
[" 11. La retribució de les persones contractades en el marc del projecte subvencionat no pot ser inferior al Salari Mínim Interprofessional (SMI), ni a l'estipulada al corresponent conveni o marc normatiu de referència (punt 7 de les bases 2025: requisits dels projectes). "]
[" 12. Els materials produïts de difusió, estudis, informes o materials didàctics utilitzats, etc. en el cas de tractar-se de despesa elegible de la subvenció, hauran de tenir llicència Creative Commons -Compartir Igual- (share a like)  i no podrà tenir la condició –Sense Obres Derivades- (no derivate Works)."]
[" 13. Els projectes subvencionats han de fomentar activitats d'interès públic o social, les quals han de ser gratuïtes per a les persones participants o en cap cas el preu ha de suposar un obstacle per a la seva participació, buscant altres formes d'accés per a persones amb dificultats econòmiques. En el cas que hi hagi algun tipus de lucre, haurà de revertir en les pròpies activitats subvencionades."]
[" 14. L'Ajuntament de Barcelona i les seves entitats municipals en cap cas subvencionaran el mateix projecte, executat durant el mateix període, per cap altre procediment de concessió que no sigui el regulat per les bases reguladores."]
[" 15. El/la beneficiari/ària no podrà alterar en cap cas el destí de les subvencions concedides."]
[" 16. L'organització designada com a representant de l'agrupació serà plenament responsable del projecte davant l'Ajuntament respecte al compliment de les obligacions establertes en les bases reguladores, sense perjudici de la responsabilitat de les altres organitzacions sòcies de l'agrupació, tot sent-li d'aplicació els requisits previstos al punt 6.1 de les bases reguladores. "]
[" 17. En cap cas podran formar part de l'agrupació les organitzacions que hagin rebut altres subvencions per a l'execució del mateix projecte d'altres administracions públiques."]
[" 18. El programa de pràctiques de l’alumne/a ha de ser d’una durada mínima de 400 hores o superior."]
[" 19. Només pot presentar-se una sol·licitud per un lloc de pràctiques per organització sol·licitant."]
[" 20. Caldrà remunerar l’alumne/a en pràctiques universitàries (curriculars o extracurriculars) amb un cost brut hora mínim de 6€/hora o superior."]
[" 21. Caldrà remunerar l’alumne/a segons la modalitat d’FP dual escollida com a mínim d’acord amb la normativa específica que estableix el Departament d’Educació de la Generalitat de Catalunya o superior. "]
[" 22. Només s’acceptaran, com a despeses subvencionables vinculades a la participació en reunions de treball i formacions, la imputació de costos de personal i despeses de trasllats només amb transports públics imputables a les activitats del projecte subvencionable (amb un límit del 7% de la subvenció) i no altres compensacions dineràries o dietes"]
[" 23. No es subvencionaran propostes perquè el personal vinculat a l'organització beneficiària faci formacions internament o a tercers. Només es podran subvencionar propostes per rebre formacions de personal extern especialitzat a la matèria de formació."]
[" 24. En el cas de presentar tiquets, el seu import no podrà superar el 10% de la subvenció i aniran acompanyats d'una declaració responsable del representant legal de la  persona jurídica o de l'agrupació de persones jurídiques que indicarà en quin concepte s'imputa aquesta despesa."]
[" 25. En cas de realitzar-se despeses superiors als imports establerts pels contractes menors de serveis, subministraments i obres de la Llei de Contractes del Sector Públic 9/2017, s’hauran d'incorporar tres pressupostos sol·licitats i argumentar el motiu de l'adjudicació en el cas de no ser la proposta més avantatjosa econòmicament."]
[" 26. No es poden imputar en cap cas despeses d’inversió, corresponents a partides de l'immobilitzat, amb els diners de la subvenció atorgada en aquesta convocatòria específica. Sí que es poden imputar a la part de contribució, sempre que siguin despeses dins el període executiu del projecte subvencionat i acreditables tal i com es descriu a les bases reguladores vigents."]

{"sheet":"Resum Pressupost","index":2,"n_rows":27,"n_cols":12,"rows_kept":27,"cut":false,"hidden":false,"merged":[[1,2,2,8],[3,0,3,9],[5,0,5,1],[6,0,7,1],[6,2,7,3],[6,4,7,5],[6,7,7,8],[6,9,7,9],[10,0,11,0],[21,0,22,1],[21,2,22,3],[21,4,22,5],[26,7,26,10],[12,7,13,7],[12,8,13,8],[12,9,13,9],[12,10,13,10],[21,7,21,8],[6,10,7,10],[9,7,10,7],[9,8,10,8],[9,9,10,9],[9,10,10,10]]}
[]
[null,null,"Resum pressupost Bb"]
[]
["Subvencions de l'Ajuntament de Barcelona per l'enfortiment de l'Economia Social i Solidària i per la intercooperació en l'Estratègia #ESSBCN2030 - ENFORTIM L’ESS 2025",null,null,null,null,null,null,null,null,null,"MODALITAT Bb"]
[]
["DESPESES PREVISTES",null,"SOL·LICITUD INICIAL","REFORMULACIÓ","SOL·LICITUD INICIAL","REFORMULACIÓ",null,"INGRESSOS PREVISTOS",null,"SOL·LICITUD INICIAL","REFORMULACIÓ"]
["Despeses directes \n(aquelles que s'identifiquen directament amb el projecte)",null,"Cost total",null,"Subvenció",null,null,"Ingressos previstos",null,"Previsió inicial ingrés total","Previsió reformulada ingrés total"]
[]
["Bb","D1. Nòmines i seguretat social IRPF (règim general o socis/es cooperativistes en règim d’autònoms) del personal propi vinculat al projecte subvencionable (màxim 40% import subvenció)",{"$f":"+'Reformulació Pressupost Bb'!E20","v":0},{"$f":"+'Reformulació Pressupost Bb'!K20","v":0},{"$f":"+'Reformulació Pressupost Bb'!B20","v":0},{"$f":"+'Reformulació Pressupost Bb'!H20","v":0},null,"A.","Subvenció municipal (import sol·licitat a la instància/atorgat)",{"$f":"'Reformulació Pressupost Bb'!B13","v":0},{"$f":"'Reformulació Pressupost Bb'!H13","v":0}]
[null,"D2. Nòmines i seguretat social d’estudiants en pràctiques (amb un límit del 80% del seu sou brut corresponent al període de l’execució de la subvenció) - excepte si la seguretat social està bonificada",{"$f":"+'Reformulació Pressupost Bb'!E26","v":0},{"$f":"+'Reformulació Pressupost Bb'!K26","v":0},{"$f":"+'Reformulació Pressupost Bb'!B26","v":0},{"$f":"+'Reformulació Pressupost Bb'!H26","v":0},null,"B.","Subvencions d'altres administracions"]
[null,"D3. Treballs realitzats per professionals i empreses externes directament vinculades al projecte",{"$f":"+'Reformulació Pressupost Bb'!E33","v":0},{"$f":"+'Reformulació Pressupost Bb'!K33","v":0},{"$f":"+'Reformulació Pressupost Bb'!B33","v":0},{"$f":"+'Reformulació Pressupost Bb'!H33","v":0},null,null,null,null,null,{"$f":"+IF(K11<0,\"No s'admeten valors negatius\",\"\")","v":""}]
[null,"D4. Adquisició de materials i béns consumibles íntegrament imputables al projecte ",{"$f":"+'Reformulació Pressupost Bb'!E39","v":0},{"$f":"+'Reformulació Pressupost Bb'!K39","v":0},{"$f":"+'Reformulació Pressupost Bb'!B39","v":0},{"$f":"+'Reformulació Pressupost Bb'!H39","v":0},null,"C.","Subvencions d'ens privats",null,null,""]
[null,"D5. Transport – missatgeria imputables al projecte",{"$f":"+'Reformulació Pressupost Bb'!E45","v":0},{"$f":"+'Reformulació Pressupost Bb'!K45","v":0},{"$f":"+'Reformulació Pressupost Bb'!B45","v":0},{"$f":"+'Reformulació Pressupost Bb'!H45","v":0},null,"D.","Recursos propis de l'organització aplicats al projecte"]
[null,"D6. Publicitat i propaganda de les activitats directament vinculades al projecte",{"$f":"+'Reformulació Pressupost Bb'!E51","v":0},{"$f":"+'Reformulació Pressupost Bb'!K51","v":0},{"$f":"+'Reformulació Pressupost Bb'!B51","v":0},{"$f":"+'Reformulació Pressupost Bb'!H51","v":0}]
[null,"D7. Allotjament i dietes, del personal contractat i voluntari, vinculats al projecte",{"$f":"+'Reformulació Pressupost Bb'!E57","v":0},{"$f":"+'Reformulació Pressupost Bb'!K57","v":0},{"$f":"+'Reformulació Pressupost Bb'!B57","v":0},{"$f":"+'Reformulació Pressupost Bb'!H57","v":0},null,"E.","Taquillatge"]
[null,"D8. Ajuts al transport per als/les participants dels projectes en cas que sigui necessari de manera justificada",{"$f":"+'Reformulació Pressupost Bb'!E63","v":0},{"$f":"+'Reformulació Pressupost Bb'!K63","v":0},{"$f":"+'Reformulació Pressupost Bb'!B63","v":0},{"$f":"+'Reformulació Pressupost Bb'!H63","v":0},null,"F.","Quotes d'inscripció"]
[null,"D9. Viatges i desplaçaments imputables a les activitats del projecte  (amb un límit del 7% de l'import de la subvenció)",{"$f":"+'Reformulació Pressupost Bb'!E69","v":0},{"$f":"+'Reformulació Pressupost Bb'!K69","v":0},{"$f":"+'Reformulació Pressupost Bb'!B69","v":0},{"$f":"+'Reformulació Pressupost Bb'!H69","v":0},null,"G.","Venda de Productes"]
[null,"D10. Tributs, quan siguin abonats directament per la persona jurídica o física beneficiària",{"$f":"+'Reformulació Pressupost Bb'!E75","v":0},{"$f":"+'Reformulació Pressupost Bb'!K75","v":0},{"$f":"+'Reformulació Pressupost Bb'!B75","v":0},{"$f":"+'Reformulació Pressupost Bb'!H75","v":0},null,"H","Publicitat i/o Esponsorització"]
[null,"D11. Despeses de l'informe d'auditoria (màxim 1.500€ subvenció)",{"$f":"+'Reformulació Pressupost Bb'!E81","v":0},{"$f":"+'Reformulació Pressupost Bb'!K81","v":0},{"$f":"+'Reformulació Pressupost Bb'!B81","v":0},{"$f":"+'Reformulació Pressupost Bb'!H81","v":0},null,"I.","Altres ingressos"]
[null,"D12. Altres despeses que de manera justificada i per la tipologia del projecte puguin imputar-se directament al projecte",{"$f":"+'Reformulació Pressupost Bb'!E87","v":0},{"$f":"+'Reformulació Pressupost Bb'!K87","v":0},{"$f":"+'Reformulació Pressupost Bb'!B87","v":0},{"$f":"+'Reformulació Pressupost Bb'!H87","v":0},null,null,"Total Ingressos",{"$f":"SUM(J9:J19)","v":0},0]
[null,"Total Despeses Directes   ",{"$f":"SUM(C9:C20)","v":0},{"$f":"SUM(D9:D20)","v":0},{"$f":"SUM(E9:E20)","v":0},{"$f":"SUM(F9:F20)","v":0}]
["Despeses indirectes (màxim 10% subvenció)",null,"Indirectes inicial total",null,"Indirectes inicial subvenció",null,null,"Ingressos menys despeses ",null,{"$f":"+J20-C25","v":0},{"$f":"+K20-D25","v":0}]
[]
[null,"Total Despeses Indirectes   ",{"$f":"'Reformulació Pressupost Bb'!E145","v":0},{"$f":"'Reformulació Pressupost Bb'!K145","v":0},{"$f":"'Reformulació Pressupost Bb'!B145","v":0},{"$f":"'Reformulació Pressupost Bb'!H145","v":0},null,null,null,"% subvencionat inicialment",{"$f":"IF(J9>0,J9/C25,\"\")","v":""}]
[null,"Total Despeses ",{"$f":"+C21+C24","v":0},0,0,0]
[null,null,null,null,null,null,null,null,null,"% subvencionat després de reformular",{"$f":"IF(K9>9,K9/D25,\"\")","v":""},"*"]
[null,null,null,null,null,null,null,"*Aquest percentatge ha de ser igual o menor al percentatge subvencionat inicialment."]